[Event "Titled Tuesday Blitz October 31 Late 2023"]
[White "SlippperyWhenWet"]
[Black "Flameboard08"]
[WhiteElo "2311"]
[BlackElo "2568"]
[Result "0-1"]
[Round "9"]
[TimeControl "180+1"]
[Date "2023.10.31"]
[WhiteClock "0:01:14"]
[BlackClock "0:00:08"]
[Board "103"]

1. e4 {[%clk 0:02:53]}  b6 {[%clk 0:02:56]} 2. d4 {[%clk 0:02:53]}  Bb7 {[%clk 0:02:37]} 3. Bd3 {[%clk 0:02:52]}  e6 {[%clk 0:02:32]} 4. Qe2 {[%clk 0:02:53]}  Nf6 {[%clk 0:02:30]} 5. Nf3 {[%clk 0:02:53]}  d5 {[%clk 0:02:28]} 6. e5 {[%clk 0:02:53]}  Ne4 {[%clk 0:02:28]} 7. Nbd2 {[%clk 0:02:53]}  Nxd2 {[%clk 0:02:28]} 8. Bxd2 {[%clk 0:02:54]}  c5 {[%clk 0:02:29]} 9. c3 {[%clk 0:02:54]}  Nc6 {[%clk 0:02:28]} 10. O-O {[%clk 0:02:54]}  a5 {[%clk 0:02:28]} 11. c4 {[%clk 0:02:41]}  Nxd4 {[%clk 0:02:24]} 12. Nxd4 {[%clk 0:02:41]}  cxd4 {[%clk 0:02:25]} 13. cxd5 {[%clk 0:02:41]}  Qxd5 {[%clk 0:02:26]} 14. Bb5+ {[%clk 0:02:36]}  Bc6 {[%clk 0:02:26]} 15. Bxc6+ {[%clk 0:02:37]}  Qxc6 {[%clk 0:02:27]} 16. Rac1 {[%clk 0:02:37]}  Bc5 {[%clk 0:02:00]} 17. Qg4 {[%clk 0:02:34]}  h5 {[%clk 0:01:13]} 18. Qxg7 {[%clk 0:02:26]}  O-O-O {[%clk 0:01:14]} 19. Qxf7 {[%clk 0:02:17]}  Rdf8 {[%clk 0:01:07]} 20. Qa7 {[%clk 0:02:02]}  Rhg8 {[%clk 0:01:05]} 21. f3 {[%clk 0:01:55]}  Rxf3 {[%clk 0:00:57]} 22. Rxf3 {[%clk 0:01:46]}  Qxf3 {[%clk 0:00:58]} 23. Rxc5+ {[%clk 0:01:45]}  bxc5 {[%clk 0:00:48]} 24. Qxc5+ {[%clk 0:01:46]}  Kb8 {[%clk 0:00:42]} 25. Qd6+ {[%clk 0:01:44]}  Ka7 {[%clk 0:00:10]} 26. Qc5+ {[%clk 0:01:33]}  Kb7 {[%clk 0:00:06]} 27. Qe7+ {[%clk 0:01:31]}  Ka8 {[%clk 0:00:04]} 28. Qd8+ {[%clk 0:01:27]}  Rxd8 {[%clk 0:00:03]} 29. gxf3 {[%clk 0:01:28]}  a4 {[%clk 0:00:02]} 30. Kf2 {[%clk 0:01:28]}  Rd5 {[%clk 0:00:02]} 31. f4 {[%clk 0:01:23]}  Rb5 {[%clk 0:00:02]} 32. b4 {[%clk 0:01:23]}  axb3 {[%clk 0:00:02]} 33. axb3 {[%clk 0:01:24]}  Rxb3 {[%clk 0:00:03]} 34. Ke2 {[%clk 0:01:23]}  Kb7 {[%clk 0:00:02]} 35. Ba5 {[%clk 0:01:21]}  Kc6 {[%clk 0:00:03]} 36. Bd8 {[%clk 0:01:21]}  Kd5 {[%clk 0:00:03]} 37. h4 {[%clk 0:01:21]}  Ke4 {[%clk 0:00:03]} 38. Bg5 {[%clk 0:01:18]}  Rb2+ {[%clk 0:00:03]} 39. Kd1 {[%clk 0:01:18]}  Rg2 {[%clk 0:00:04]} 40. Bh6 {[%clk 0:01:18]}  d3 {[%clk 0:00:04]} 41. f5 {[%clk 0:01:17]}  Kxf5 {[%clk 0:00:04]} 42. Bd2 {[%clk 0:01:18]}  Ke4 {[%clk 0:00:04]} 43. Bh6 {[%clk 0:01:18]}  Kxe5 {[%clk 0:00:04]} 44. Bd2 {[%clk 0:01:17]}  Ke4 {[%clk 0:00:04]} 45. Bh6 {[%clk 0:01:17]}  Kf3 {[%clk 0:00:04]} 46. Bg5 {[%clk 0:01:13]}  e5 {[%clk 0:00:05]} 47. Bh6 {[%clk 0:01:13]}  e4 {[%clk 0:00:05]} 48. Bc1 {[%clk 0:01:11]}  e3 {[%clk 0:00:03]} 49. Bd2 {[%clk 0:01:12]}  Rg1+ {[%clk 0:00:02]} 50. Be1 {[%clk 0:01:12]}  d2 {[%clk 0:00:03]} 51. Kc2 {[%clk 0:01:11]}  dxe1=Q {[%clk 0:00:03]} 52. Kd3 {[%clk 0:01:11]}  Qd2+ {[%clk 0:00:03]} 53. Kc4 {[%clk 0:01:12]}  Rc1+ {[%clk 0:00:03]} 54. Kb3 {[%clk 0:01:12]}  Qc3+ {[%clk 0:00:04]} 55. Ka4 {[%clk 0:01:12]}  Ra1+ {[%clk 0:00:04]} 56. Kb5 {[%clk 0:01:13]}  Ra5+ {[%clk 0:00:05]} 57. Kb6 {[%clk 0:01:13]}  Qc5+ {[%clk 0:00:06]} 58. Kb7 {[%clk 0:01:14]}  Ra7+ {[%clk 0:00:07]} 59. Kb8 {[%clk 0:01:14]}  Qc7# {[%clk 0:00:08]} 0-1


[Site "https://www.chess.com"]

[Event "Titled Tuesday Blitz October 31 Late 2023"]
[White "Sari, Yasin"]
[Black "Chocenka, Dmitrijus"]
[WhiteFideId "6320902"]
[BlackFideId "12802336"]
[WhiteElo "2300"]
[BlackElo "2470"]
[Result "0-1"]
[Round "9"]
[TimeControl "180+1"]
[Date "2023.10.31"]
[WhiteClock "0:00:00"]
[BlackClock "0:00:50"]
[Board "104"]

1. Nf3 {[%clk 0:02:56]}  Nf6 {[%clk 0:02:59]} 2. g3 {[%clk 0:02:56]}  g6 {[%clk 0:03:00]} 3. Bg2 {[%clk 0:02:56]}  Bg7 {[%clk 0:03:01]} 4. O-O {[%clk 0:02:56]}  O-O {[%clk 0:03:02]} 5. c4 {[%clk 0:02:56]}  d6 {[%clk 0:03:02]} 6. d4 {[%clk 0:02:55]}  Nc6 {[%clk 0:03:01]} 7. Nc3 {[%clk 0:02:54]}  Bf5 {[%clk 0:03:01]} 8. d5 {[%clk 0:02:44]}  Na5 {[%clk 0:03:01]} 9. Nd2 {[%clk 0:02:44]}  Ne8 {[%clk 0:03:01]} 10. e4 {[%clk 0:02:37]}  Bd7 {[%clk 0:03:00]} 11. Qc2 {[%clk 0:02:36]}  c6 {[%clk 0:03:00]} 12. b4 {[%clk 0:02:27]}  Nxc4 {[%clk 0:03:00]} 13. Nxc4 {[%clk 0:02:26]}  cxd5 {[%clk 0:03:00]} 14. exd5 {[%clk 0:01:19]}  Rc8 {[%clk 0:02:58]} 15. Qd3 {[%clk 0:00:38]}  b5 {[%clk 0:02:54]} 16. Na5 {[%clk 0:00:37]}  Rxc3 {[%clk 0:02:42]} 17. Qe2 {[%clk 0:00:29]}  Bf5 {[%clk 0:02:29]} 18. Bg5 {[%clk 0:00:27]}  Rc2 {[%clk 0:02:08]} 19. Qxe7 {[%clk 0:00:20]}  Qxe7 {[%clk 0:02:06]} 20. Bxe7 {[%clk 0:00:20]}  Bxa1 {[%clk 0:02:06]} 21. Rxa1 {[%clk 0:00:21]}  Bd3 {[%clk 0:01:41]} 22. Bf3 {[%clk 0:00:07]}  Kg7 {[%clk 0:01:34]} 23. Bxf8+ {[%clk 0:00:07]}  Kxf8 {[%clk 0:01:35]} 24. Nc6 {[%clk 0:00:05]}  a6 {[%clk 0:01:24]} 25. Kg2 {[%clk 0:00:06]}  Bc4 {[%clk 0:01:19]} 26. a4 {[%clk 0:00:05]}  Nf6 {[%clk 0:01:16]} 27. axb5 {[%clk 0:00:05]}  axb5 {[%clk 0:01:15]} 28. Ra7 {[%clk 0:00:02]}  Nxd5 {[%clk 0:01:04]} 29. Nd8 {[%clk 0:00:02]}  Nxb4 {[%clk 0:01:00]} 30. Nb7 {[%clk 0:00:02]}  Nd3 {[%clk 0:00:52]} 31. Nxd6 {[%clk 0:00:02]}  Rxf2+ {[%clk 0:00:51]} 32. Kg1 {[%clk 0:00:00]}  Rxf3 {[%clk 0:00:50]} 0-1


[Site "https://www.chess.com"]

[Event "Titled Tuesday Blitz October 31 Late 2023"]
[White "LuxLinster"]
[Black "Mushini Ajay"]
[BlackFideId "35066188"]
[WhiteElo "2269"]
[BlackElo "2373"]
[Result "0-1"]
[Round "9"]
[TimeControl "180+1"]
[Date "2023.10.31"]
[WhiteClock "0:00:00"]
[BlackClock "0:01:01"]
[Board "107"]

1. d4 {[%clk 0:03:00]}  Nf6 {[%clk 0:02:56]} 2. c4 {[%clk 0:03:00]}  e6 {[%clk 0:02:56]} 3. g3 {[%clk 0:03:00]}  c5 {[%clk 0:02:56]} 4. Nf3 {[%clk 0:02:59]}  cxd4 {[%clk 0:02:56]} 5. Nxd4 {[%clk 0:03:00]}  Nc6 {[%clk 0:02:55]} 6. Bg2 {[%clk 0:02:59]}  Bc5 {[%clk 0:02:53]} 7. Nb5 {[%clk 0:02:49]}  d5 {[%clk 0:02:50]} 8. cxd5 {[%clk 0:02:35]}  exd5 {[%clk 0:02:47]} 9. Bxd5 {[%clk 0:02:27]}  Bxf2+ {[%clk 0:02:06]} 10. Kxf2 {[%clk 0:02:15]}  Qb6+ {[%clk 0:01:55]} 11. Kg2 {[%clk 0:01:56]}  Qxb5 {[%clk 0:01:52]} 12. Nc3 {[%clk 0:01:56]}  Qb6 {[%clk 0:01:50]} 13. Bg5 {[%clk 0:01:54]}  Ng4 {[%clk 0:01:47]} 14. Bxf7+ {[%clk 0:00:45]}  Kxf7 {[%clk 0:01:42]} 15. Rf1+ {[%clk 0:00:38]}  Nf6 {[%clk 0:01:40]} 16. Bxf6 {[%clk 0:00:28]}  gxf6 {[%clk 0:01:30]} 17. Rxf6+ {[%clk 0:00:29]}  Kg7 {[%clk 0:01:29]} 18. Qf1 {[%clk 0:00:05]}  Qc7 {[%clk 0:01:11]} 19. Nd5 {[%clk 0:00:05]}  Qd7 {[%clk 0:01:11]} 20. e4 {[%clk 0:00:05]}  Qh3+ {[%clk 0:01:10]} 21. Kg1 {[%clk 0:00:05]}  Qxf1+ {[%clk 0:01:08]} 22. Raxf1 {[%clk 0:00:06]}  Ne5 {[%clk 0:01:06]} 23. Nc7 {[%clk 0:00:04]}  Rb8 {[%clk 0:01:02]} 24. Ne6+ {[%clk 0:00:04]}  Bxe6 {[%clk 0:01:01]} 25. Rxe6 {[%clk 0:00:05]}  Rhe8 {[%clk 0:01:00]} 26. Rxe8 {[%clk 0:00:00]}  Rxe8 {[%clk 0:01:01]} 0-1


[Site "https://www.chess.com"]

[Event "Titled Tuesday Blitz October 31 Late 2023"]
[White "Lock, Gavin R"]
[Black "Baghdasaryan, Vahe"]
[WhiteFideId "408646"]
[BlackFideId "13303139"]
[WhiteElo "2239"]
[BlackElo "2363"]
[Result "1-0"]
[Round "9"]
[TimeControl "180+1"]
[Date "2023.10.31"]
[WhiteClock "0:00:20"]
[BlackClock "0:00:21"]
[Board "108"]

1. e4 {[%clk 0:03:00]}  e5 {[%clk 0:02:54]} 2. Nf3 {[%clk 0:03:00]}  Nc6 {[%clk 0:02:53]} 3. Bb5 {[%clk 0:03:00]}  a6 {[%clk 0:02:51]} 4. Ba4 {[%clk 0:03:00]}  Nf6 {[%clk 0:02:50]} 5. d3 {[%clk 0:03:00]}  b5 {[%clk 0:02:33]} 6. Bb3 {[%clk 0:02:59]}  Bc5 {[%clk 0:02:29]} 7. Nc3 {[%clk 0:02:59]}  d6 {[%clk 0:02:27]} 8. Nd5 {[%clk 0:02:52]}  Nxd5 {[%clk 0:02:21]} 9. Bxd5 {[%clk 0:02:49]}  Bb7 {[%clk 0:02:14]} 10. c3 {[%clk 0:01:51]}  O-O {[%clk 0:01:58]} 11. O-O {[%clk 0:01:50]}  Rb8 {[%clk 0:01:52]} 12. b4 {[%clk 0:01:17]}  Bb6 {[%clk 0:01:46]} 13. a4 {[%clk 0:01:17]}  Ne7 {[%clk 0:01:41]} 14. Bxb7 {[%clk 0:01:16]}  Rxb7 {[%clk 0:01:42]} 15. axb5 {[%clk 0:01:16]}  axb5 {[%clk 0:01:43]} 16. d4 {[%clk 0:01:15]}  Ng6 {[%clk 0:01:35]} 17. Re1 {[%clk 0:01:13]}  h6 {[%clk 0:01:27]} 18. Qd3 {[%clk 0:01:07]}  c6 {[%clk 0:01:19]} 19. Be3 {[%clk 0:01:04]}  Qc8 {[%clk 0:00:55]} 20. dxe5 {[%clk 0:00:50]}  Bxe3 {[%clk 0:00:48]} 21. Qxe3 {[%clk 0:00:51]}  dxe5 {[%clk 0:00:47]} 22. Qc5 {[%clk 0:00:49]}  Re8 {[%clk 0:00:37]} 23. Ra6 {[%clk 0:00:45]}  Qg4 {[%clk 0:00:34]} 24. h3 {[%clk 0:00:28]}  Qf4 {[%clk 0:00:20]} 25. Rxc6 {[%clk 0:00:24]}  Rbe7 {[%clk 0:00:17]} 26. Qxb5 {[%clk 0:00:15]}  Re6 {[%clk 0:00:18]} 27. Rxe6 {[%clk 0:00:14]}  Rxe6 {[%clk 0:00:18]} 28. Qc5 {[%clk 0:00:12]}  Rf6 {[%clk 0:00:16]} 29. b5 {[%clk 0:00:12]}  Nh4 {[%clk 0:00:15]} 30. Nxh4 {[%clk 0:00:11]}  Qxh4 {[%clk 0:00:16]} 31. c4 {[%clk 0:00:10]}  Rg6 {[%clk 0:00:15]} 32. Qe3 {[%clk 0:00:09]}  Qd8 {[%clk 0:00:13]} 33. c5 {[%clk 0:00:08]}  Qd7 {[%clk 0:00:13]} 34. c6 {[%clk 0:00:08]}  Qc7 {[%clk 0:00:11]} 35. Rc1 {[%clk 0:00:08]}  f5 {[%clk 0:00:08]} 36. exf5 {[%clk 0:00:07]}  Rf6 {[%clk 0:00:08]} 37. b6 {[%clk 0:00:06]}  Qc8 {[%clk 0:00:07]} 38. Qxe5 {[%clk 0:00:05]}  Rxf5 {[%clk 0:00:07]} 39. Qxf5 {[%clk 0:00:04]}  Qxf5 {[%clk 0:00:06]} 40. c7 {[%clk 0:00:04]}  Qc8 {[%clk 0:00:06]} 41. b7 {[%clk 0:00:04]}  Qxb7 {[%clk 0:00:07]} 42. c8=Q+ {[%clk 0:00:05]}  Qxc8 {[%clk 0:00:07]} 43. Rxc8+ {[%clk 0:00:05]}  Kh7 {[%clk 0:00:08]} 44. Rc6 {[%clk 0:00:05]}  g6 {[%clk 0:00:08]} 45. g4 {[%clk 0:00:06]}  h5 {[%clk 0:00:08]} 46. Kg2 {[%clk 0:00:07]}  hxg4 {[%clk 0:00:08]} 47. hxg4 {[%clk 0:00:08]}  Kh6 {[%clk 0:00:09]} 48. Kg3 {[%clk 0:00:08]}  Kg5 {[%clk 0:00:10]} 49. f4+ {[%clk 0:00:09]}  Kh6 {[%clk 0:00:10]} 50. Kh4 {[%clk 0:00:08]}  Kg7 {[%clk 0:00:10]} 51. Kg5 {[%clk 0:00:08]}  Kf8 {[%clk 0:00:11]} 52. Rxg6 {[%clk 0:00:08]}  Ke8 {[%clk 0:00:12]} 53. Rf6 {[%clk 0:00:09]}  Kd8 {[%clk 0:00:13]} 54. f5 {[%clk 0:00:10]}  Kc8 {[%clk 0:00:14]} 55. Kg6 {[%clk 0:00:10]}  Kd7 {[%clk 0:00:15]} 56. Rf7+ {[%clk 0:00:11]}  Kd6 {[%clk 0:00:15]} 57. Kf6 {[%clk 0:00:12]}  Kd5 {[%clk 0:00:15]} 58. Re7 {[%clk 0:00:13]}  Kd4 {[%clk 0:00:15]} 59. Re6 {[%clk 0:00:14]}  Kd3 {[%clk 0:00:16]} 60. g5 {[%clk 0:00:15]}  Kd2 {[%clk 0:00:17]} 61. g6 {[%clk 0:00:16]}  Kd3 {[%clk 0:00:18]} 62. g7 {[%clk 0:00:17]}  Kd2 {[%clk 0:00:18]} 63. g8=Q {[%clk 0:00:17]}  Kc2 {[%clk 0:00:19]} 64. Qd8 {[%clk 0:00:18]}  Kc1 {[%clk 0:00:20]} 65. Rc6+ {[%clk 0:00:18]}  Kb1 {[%clk 0:00:21]} 66. Qb8+ {[%clk 0:00:19]}  Ka1 {[%clk 0:00:21]} 67. Ra6# {[%clk 0:00:20]} 1-0


[Site "https://www.chess.com"]

[Event "Titled Tuesday Blitz October 31 Late 2023"]
[White "Clawitter, Craig"]
[Black "Balla, Tamas-Kristof"]
[WhiteFideId "2023105"]
[BlackFideId "1208497"]
[WhiteElo "2223"]
[BlackElo "2327"]
[Result "1-0"]
[Round "9"]
[TimeControl "180+1"]
[Date "2023.10.31"]
[WhiteClock "0:02:11"]
[BlackClock "0:01:36"]
[Board "109"]

1. e4 {[%clk 0:02:58]}  c5 {[%clk 0:02:59]} 2. Nf3 {[%clk 0:02:56]}  Nc6 {[%clk 0:02:59]} 3. d4 {[%clk 0:02:56]}  cxd4 {[%clk 0:03:00]} 4. Nxd4 {[%clk 0:02:57]}  e5 {[%clk 0:03:01]} 5. Nb5 {[%clk 0:02:56]}  d6 {[%clk 0:03:01]} 6. N1c3 {[%clk 0:02:57]}  a6 {[%clk 0:03:01]} 7. Na3 {[%clk 0:02:57]}  b5 {[%clk 0:03:02]} 8. Nd5 {[%clk 0:02:58]}  Nge7 {[%clk 0:03:03]} 9. c4 {[%clk 0:02:55]}  Nxd5 {[%clk 0:03:03]} 10. exd5 {[%clk 0:02:55]}  Nd4 {[%clk 0:03:03]} 11. cxb5 {[%clk 0:02:55]}  Bd7 {[%clk 0:03:03]} 12. bxa6 {[%clk 0:02:54]}  Qa5+ {[%clk 0:03:03]} 13. Bd2 {[%clk 0:02:49]}  Qxd5 {[%clk 0:03:04]} 14. f3 {[%clk 0:02:28]}  Be7 {[%clk 0:03:04]} 15. Bc4 {[%clk 0:02:26]}  Bh4+ {[%clk 0:02:41]} 16. Kf1 {[%clk 0:02:24]}  Qc5 {[%clk 0:02:21]} 17. Be3 {[%clk 0:02:18]}  O-O {[%clk 0:02:11]} 18. Rc1 {[%clk 0:02:16]}  Qb4 {[%clk 0:01:43]} 19. Bxd4 {[%clk 0:02:12]}  exd4 {[%clk 0:01:42]} 20. Qxd4 {[%clk 0:02:12]}  Bf6 {[%clk 0:01:36]} 21. Bxf7+ {[%clk 0:02:11]} 1-0


[Site "https://www.chess.com"]

[Event "Titled Tuesday Blitz October 31 Late 2023"]
[White "Smirnov, Timofey"]
[Black "Padalka, Artem"]
[WhiteFideId "24176427"]
[BlackFideId "14118637"]
[WhiteElo "2216"]
[BlackElo "2323"]
[Result "0-1"]
[Round "9"]
[TimeControl "180+1"]
[Date "2023.10.31"]
[WhiteClock "0:00:14"]
[BlackClock "0:00:44"]
[Board "110"]

1. d4 {[%clk 0:03:00]}  Nf6 {[%clk 0:02:58]} 2. Bf4 {[%clk 0:03:00]}  c5 {[%clk 0:02:58]} 3. e3 {[%clk 0:03:00]}  g6 {[%clk 0:02:57]} 4. c3 {[%clk 0:02:58]}  Bg7 {[%clk 0:02:57]} 5. Nf3 {[%clk 0:02:57]}  O-O {[%clk 0:02:58]} 6. h3 {[%clk 0:02:57]}  d6 {[%clk 0:02:58]} 7. Be2 {[%clk 0:02:56]}  cxd4 {[%clk 0:02:55]} 8. exd4 {[%clk 0:02:56]}  Nd5 {[%clk 0:02:53]} 9. Bh2 {[%clk 0:02:56]}  Nc6 {[%clk 0:02:53]} 10. O-O {[%clk 0:02:49]}  e5 {[%clk 0:02:53]} 11. dxe5 {[%clk 0:02:36]}  dxe5 {[%clk 0:02:54]} 12. Bc4 {[%clk 0:02:02]}  Nb6 {[%clk 0:02:47]} 13. Bb3 {[%clk 0:01:59]}  Bf5 {[%clk 0:02:46]} 14. Nbd2 {[%clk 0:01:51]}  e4 {[%clk 0:02:33]} 15. Ne1 {[%clk 0:01:39]}  Qg5 {[%clk 0:02:19]} 16. Kh1 {[%clk 0:01:35]}  Rad8 {[%clk 0:02:16]} 17. f4 {[%clk 0:01:31]}  Qh4 {[%clk 0:01:50]} 18. Qe2 {[%clk 0:01:25]}  Rfe8 {[%clk 0:01:48]} 19. Qe3 {[%clk 0:01:15]}  Nd5 {[%clk 0:01:42]} 20. Bxd5 {[%clk 0:01:11]}  Rxd5 {[%clk 0:01:43]} 21. Nb3 {[%clk 0:01:06]}  b6 {[%clk 0:01:25]} 22. Bg3 {[%clk 0:00:57]}  Qd8 {[%clk 0:01:13]} 23. Nc2 {[%clk 0:00:56]}  Rd3 {[%clk 0:01:12]} 24. Qe1 {[%clk 0:00:50]}  e3 {[%clk 0:01:06]} 25. Rf3 {[%clk 0:00:40]}  e2 {[%clk 0:00:59]} 26. Rxd3 {[%clk 0:00:40]}  Qxd3 {[%clk 0:00:55]} 27. Ncd4 {[%clk 0:00:38]}  Nxd4 {[%clk 0:00:54]} 28. Nxd4 {[%clk 0:00:38]}  Bxd4 {[%clk 0:00:54]} 29. cxd4 {[%clk 0:00:38]}  Qxd4 {[%clk 0:00:54]} 30. Rc1 {[%clk 0:00:30]}  Qxb2 {[%clk 0:00:52]} 31. Bf2 {[%clk 0:00:22]}  Qxa2 {[%clk 0:00:51]} 32. Ra1 {[%clk 0:00:21]}  Qd5 {[%clk 0:00:47]} 33. Rxa7 {[%clk 0:00:20]}  Be4 {[%clk 0:00:45]} 34. Ra6 {[%clk 0:00:13]}  Bxg2+ {[%clk 0:00:44]} 35. Kg1 {[%clk 0:00:14]}  Bxh3 {[%clk 0:00:45]} 36. Rxb6 {[%clk 0:00:14]}  Qg2# {[%clk 0:00:44]} 0-1


[Site "https://www.chess.com"]

[Event "Titled Tuesday Blitz October 31 Late 2023"]
[White "Romero Ruscalleda, Josep"]
[Black "Sarkar, Justin"]
[WhiteFideId "2231859"]
[BlackFideId "2010011"]
[WhiteElo "2298"]
[BlackElo "2208"]
[Result "0-1"]
[Round "9"]
[TimeControl "180+1"]
[Date "2023.10.31"]
[WhiteClock "0:00:00"]
[BlackClock "0:00:03"]
[Board "112"]

1. e4 {[%clk 0:03:00]}  c5 {[%clk 0:02:47]} 2. c3 {[%clk 0:03:00]}  d5 {[%clk 0:02:45]} 3. exd5 {[%clk 0:03:00]}  Nf6 {[%clk 0:02:45]} 4. Nf3 {[%clk 0:03:00]}  Nxd5 {[%clk 0:02:44]} 5. Bc4 {[%clk 0:02:59]}  Nc6 {[%clk 0:02:42]} 6. O-O {[%clk 0:02:57]}  Nb6 {[%clk 0:02:36]} 7. Bb3 {[%clk 0:02:53]}  c4 {[%clk 0:02:29]} 8. Bc2 {[%clk 0:02:52]}  Bg4 {[%clk 0:02:28]} 9. Re1 {[%clk 0:02:50]}  e6 {[%clk 0:02:19]} 10. a4 {[%clk 0:02:48]}  Bd6 {[%clk 0:02:08]} 11. h3 {[%clk 0:02:46]}  Bh5 {[%clk 0:02:07]} 12. a5 {[%clk 0:02:38]}  Nd7 {[%clk 0:01:59]} 13. a6 {[%clk 0:02:20]}  b5 {[%clk 0:01:51]} 14. Na3 {[%clk 0:02:16]}  Rb8 {[%clk 0:01:48]} 15. b3 {[%clk 0:01:58]}  cxb3 {[%clk 0:01:36]} 16. Bxb3 {[%clk 0:01:58]}  Nde5 {[%clk 0:01:35]} 17. g4 {[%clk 0:01:57]}  Bg6 {[%clk 0:01:30]} 18. d4 {[%clk 0:01:57]}  Nd3 {[%clk 0:01:23]} 19. Re3 {[%clk 0:01:38]}  Nxc1 {[%clk 0:01:23]} 20. Qxc1 {[%clk 0:01:31]}  O-O {[%clk 0:01:15]} 21. Qe1 {[%clk 0:01:22]}  b4 {[%clk 0:01:03]} 22. Nc4 {[%clk 0:01:04]}  bxc3 {[%clk 0:01:02]} 23. Nxd6 {[%clk 0:00:57]}  Rxb3 {[%clk 0:01:00]} 24. Nb7 {[%clk 0:00:56]}  Qd5 {[%clk 0:00:42]} 25. Rxc3 {[%clk 0:00:49]}  Rxc3 {[%clk 0:00:38]} 26. Qxc3 {[%clk 0:00:49]}  Be4 {[%clk 0:00:38]} 27. Nd2 {[%clk 0:00:18]}  Nxd4 {[%clk 0:00:38]} 28. Re1 {[%clk 0:00:15]}  Bh1 {[%clk 0:00:37]} 29. f3 {[%clk 0:00:13]}  Nxf3+ {[%clk 0:00:28]} 30. Nxf3 {[%clk 0:00:13]}  Bxf3 {[%clk 0:00:28]} 31. Re3 {[%clk 0:00:11]}  Bh1 {[%clk 0:00:20]} 32. Qc2 {[%clk 0:00:06]}  h5 {[%clk 0:00:17]} 33. gxh5 {[%clk 0:00:05]}  Qg5+ {[%clk 0:00:13]} 34. Kxh1 {[%clk 0:00:03]}  Qxe3 {[%clk 0:00:12]} 35. h6 {[%clk 0:00:04]}  Qxh3+ {[%clk 0:00:12]} 36. Kg1 {[%clk 0:00:03]}  Qxh6 {[%clk 0:00:12]} 37. Qc5 {[%clk 0:00:03]}  Qg6+ {[%clk 0:00:10]} 38. Kh1 {[%clk 0:00:03]}  Qe4+ {[%clk 0:00:10]} 39. Kg1 {[%clk 0:00:03]}  Qe1+ {[%clk 0:00:07]} 40. Kh2 {[%clk 0:00:03]}  Qd2+ {[%clk 0:00:07]} 41. Kh3 {[%clk 0:00:03]}  Qd5 {[%clk 0:00:04]} 42. Qxa7 {[%clk 0:00:02]}  Rc8 {[%clk 0:00:04]} 43. Nd6 {[%clk 0:00:00]}  Rc3+ {[%clk 0:00:03]} 0-1


[Site "https://www.chess.com"]

[Event "Titled Tuesday Blitz October 31 Late 2023"]
[White "Vila Dupla, Aurelio"]
[Black "Perry, Patrick"]
[WhiteFideId "2203383"]
[BlackFideId "30917727"]
[WhiteElo "2217"]
[BlackElo "2198"]
[Result "1-0"]
[Round "9"]
[TimeControl "180+1"]
[Date "2023.10.31"]
[WhiteClock "0:00:19"]
[BlackClock "0:01:42"]
[Board "114"]

1. Nf3 {[%clk 0:03:00]}  c5 {[%clk 0:03:00]} 2. c4 {[%clk 0:03:00]}  Nf6 {[%clk 0:03:00]} 3. Nc3 {[%clk 0:02:59]}  g6 {[%clk 0:02:59]} 4. d4 {[%clk 0:02:57]}  cxd4 {[%clk 0:02:59]} 5. Nxd4 {[%clk 0:02:57]}  Bg7 {[%clk 0:03:00]} 6. e4 {[%clk 0:02:57]}  O-O {[%clk 0:02:57]} 7. Be3 {[%clk 0:02:56]}  Nc6 {[%clk 0:02:55]} 8. Be2 {[%clk 0:02:54]}  Ne8 {[%clk 0:02:43]} 9. O-O {[%clk 0:02:35]}  Nc7 {[%clk 0:02:42]} 10. Bg4 {[%clk 0:02:16]}  d6 {[%clk 0:02:40]} 11. Bxc8 {[%clk 0:02:15]}  Rxc8 {[%clk 0:02:40]} 12. Rc1 {[%clk 0:02:00]}  a6 {[%clk 0:02:38]} 13. b3 {[%clk 0:01:58]}  Nxd4 {[%clk 0:02:33]} 14. Bxd4 {[%clk 0:01:57]}  Bxd4 {[%clk 0:02:33]} 15. Qxd4 {[%clk 0:01:57]}  Ne6 {[%clk 0:02:32]} 16. Qe3 {[%clk 0:01:46]}  Qa5 {[%clk 0:02:31]} 17. Nd5 {[%clk 0:01:35]}  Rfe8 {[%clk 0:02:30]} 18. Rc2 {[%clk 0:00:50]}  b5 {[%clk 0:02:27]} 19. Rfc1 {[%clk 0:00:46]}  bxc4 {[%clk 0:02:26]} 20. Nb6 {[%clk 0:00:46]}  Rc6 {[%clk 0:02:12]} 21. Nxc4 {[%clk 0:00:44]}  Qc5 {[%clk 0:02:07]} 22. Qxc5 {[%clk 0:00:42]}  Rxc5 {[%clk 0:02:06]} 23. Ne3 {[%clk 0:00:39]}  Rec8 {[%clk 0:02:05]} 24. Rxc5 {[%clk 0:00:39]}  Rxc5 {[%clk 0:02:05]} 25. Rxc5 {[%clk 0:00:38]}  Nxc5 {[%clk 0:02:05]} 26. f3 {[%clk 0:00:39]}  Kf8 {[%clk 0:02:03]} 27. Kf2 {[%clk 0:00:39]}  e6 {[%clk 0:02:02]} 28. Ke2 {[%clk 0:00:38]}  Ke7 {[%clk 0:02:02]} 29. Kd2 {[%clk 0:00:38]}  Kd7 {[%clk 0:02:02]} 30. Kc3 {[%clk 0:00:38]}  Kc6 {[%clk 0:02:02]} 31. Nc4 {[%clk 0:00:38]}  f6 {[%clk 0:01:59]} 32. Nb2 {[%clk 0:00:37]}  d5 {[%clk 0:01:59]} 33. exd5+ {[%clk 0:00:34]}  Kxd5 {[%clk 0:01:59]} 34. Nd3 {[%clk 0:00:33]}  Nxd3 {[%clk 0:01:56]} 35. Kxd3 {[%clk 0:00:33]}  e5 {[%clk 0:01:56]} 36. b4 {[%clk 0:00:31]}  f5 {[%clk 0:01:57]} 37. a4 {[%clk 0:00:31]}  g5 {[%clk 0:01:56]} 38. g3 {[%clk 0:00:25]}  h6 {[%clk 0:01:55]} 39. h3 {[%clk 0:00:25]}  h5 {[%clk 0:01:54]} 40. g4 {[%clk 0:00:19]}  e4+ {[%clk 0:01:46]} 41. fxe4+ {[%clk 0:00:18]}  fxe4+ {[%clk 0:01:45]} 42. Ke3 {[%clk 0:00:19]}  hxg4 {[%clk 0:01:41]} 43. hxg4 {[%clk 0:00:19]}  Kc4 {[%clk 0:01:39]} 44. b5 {[%clk 0:00:17]}  axb5 {[%clk 0:01:39]} 45. axb5 {[%clk 0:00:17]}  Kxb5 {[%clk 0:01:40]} 46. Kxe4 {[%clk 0:00:17]}  Kc6 {[%clk 0:01:41]} 47. Kf5 {[%clk 0:00:18]}  Kd7 {[%clk 0:01:42]} 48. Kxg5 {[%clk 0:00:18]}  Ke8 {[%clk 0:01:42]} 49. Kg6 {[%clk 0:00:18]}  Kf8 {[%clk 0:01:43]} 50. Kh7 {[%clk 0:00:19]}  Kf7 {[%clk 0:01:42]} 51. g5 {[%clk 0:00:19]} 1-0


[Site "https://www.chess.com"]